fUSD/lending_fUSD_20241110
["ID","MTS","AMOUNT","RATE_DAILY","PERIOD"]
[341847741,1731252642824,-500.0,0.00013698,2]
[341847743,1731252642833,-500.0,0.00013698,2]
[341847746,1731252642842,-500.0,0.00013698,2]
[341847747,1731252642851,-500.0,0.00013698,2]
[341847749,1731252642860,-500.0,0.00013698,2]
[341847751,1731252642869,-500.0,0.00013698,2]
[341847753,1731252642878,-500.0,0.00013698,2]
[341847755,1731252642887,-500.0,0.00013698,2]
[341847757,1731252642899,-500.0,0.00013698,2]
[341847759,1731252642908,-500.0,0.00013698,2]
[341847761,1731252642917,-500.0,0.00013698,2]
[341847763,1731252642926,-500.0,0.00013698,2]
[341847765,1731252642935,-500.0,0.00013698,2]
[341847767,1731252642944,-500.0,0.00013698,2]
[341847769,1731252642953,-500.0,0.00013698,2]
[341847771,1731252642962,-180.48066311,0.00013698,2]
[341847802,1731252643221,-319.51933689,0.00013698,2]
[341847804,1731252643231,-500.0,0.00013698,2]
[341847807,1731252643242,-500.0,0.00013698,2]
[341847809,1731252643251,-500.0,0.00013698,2]
[341847811,1731252643261,-500.0,0.00013698,2]
[341847813,1731252643270,-500.0,0.00013698,2]
[341847815,1731252643279,-500.0,0.00013698,2]
[341847817,1731252643289,-635.31135702,0.00013698,2]
[341847819,1731252643299,-500.0,0.00013698,2]
[341847821,1731252643309,-500.0,0.00013698,2]
[341847823,1731252643318,-500.0,0.00013698,2]
[341847825,1731252643327,-500.0,0.00013698,2]
[341847827,1731252643337,-294.1345669,0.00013698,2]
[341847829,1731252643346,-500.0,0.00013698,2]
[341847831,1731252643356,-500.0,0.00013698,2]
[341847833,1731252643366,-529.3288826,0.00013698,2]
[341847835,1731252643377,-500.0,0.00013698,2]
[341847837,1731252643387,-500.0,0.00013698,2]
[341847839,1731252643400,-500.0,0.00013698,2]
[341847841,1731252643409,-500.0,0.00013698,2]
[341847843,1731252643418,-500.0,0.00013698,2]
[341847845,1731252643428,-500.0,0.00013698,2]
[341847847,1731252643437,-153.16700059,0.00013698,2]
[341847849,1731252643446,-500.0,0.00013698,2]
[341847851,1731252643455,-500.0,0.00013698,2]
[341847853,1731252643465,-500.0,0.00013698,2]
[341847855,1731252643474,-543.5655164,0.00013698,2]
[341847857,1731252643488,-262.27831733,0.00013698,2]
[341847859,1731252643497,-500.0,0.00013698,2]
[341847861,1731252643506,-500.0,0.00013698,2]
[341847863,1731252643515,-500.0,0.00013698,2]
[341847865,1731252643524,-316.46136248,0.00013698,2]
[341847867,1731252643534,-500.0,0.00013698,2]
[341847869,1731252643544,-500.0,0.00013698,2]
[341847871,1731252643555,-500.0,0.00013698,2]
[341847873,1731252643565,-500.0,0.00013698,2]
[341847875,1731252643574,-500.0,0.00013698,2]
[341847877,1731252643584,-500.0,0.00013698,2]
[341847879,1731252643593,-500.0,0.00013698,2]
[341847881,1731252643602,-500.0,0.00013698,2]
[341847883,1731252643611,-500.0,0.00013698,2]
[341847885,1731252643621,-500.0,0.00013698,2]
[341847887,1731252643631,-500.0,0.00013698,2]
[341847889,1731252643640,-500.0,0.00013698,2]
[341847891,1731252643651,-500.0,0.00013698,2]
[341847893,1731252643660,-500.0,0.00013698,2]
[341847895,1731252643670,-500.0,0.00013698,2]
[341847897,1731252643679,-562.03844104,0.00013698,2]
[341847899,1731252643688,-500.0,0.00013698,2]
[341847901,1731252643697,-500.0,0.00013698,2]
[341847903,1731252643706,-500.0,0.00013698,2]
[341847905,1731252643715,-500.0,0.00013698,2]
[341847907,1731252643724,-500.0,0.00013698,2]
[341847909,1731252643733,-164.05743815,0.00013698,2]
[341847911,1731252643743,-500.0,0.00013698,2]
[341847913,1731252643751,-500.0,0.00013698,2]
[341847915,1731252643760,-500.00000039,0.00013698,2]
[341847916,1731252643769,-524.76,0.00013698,2]
[341847919,1731252643779,-524.76,0.00013698,2]
[341847920,1731252643788,-524.76,0.00013698,2]
[341847922,1731252643797,-500.0,0.00013698,2]
[341847924,1731252643806,-524.76,0.00013698,2]
[341847926,1731252643816,-500.0,0.00013698,2]
[341847928,1731252643825,-500.0,0.00013698,2]
[341847930,1731252643834,-524.76,0.00013698,2]
[341847932,1731252643843,-500.0,0.00013698,2]
[341847935,1731252643853,-520.99279394,0.00013698,2]
[341847936,1731252643864,-524.76,0.00013698,2]
[341847938,1731252643874,-500.0,0.00013698,2]
[341847941,1731252643883,-801.29,0.00013698,2]
[341847942,1731252643893,-500.0,0.00013698,2]
[341847944,1731252643905,-500.0,0.00013698,2]
[341847946,1731252643914,-801.29,0.00013698,2]
[341847948,1731252643923,-524.76,0.00013698,2]
[341847950,1731252643933,-500.0,0.00013698,2]
[341847952,1731252643942,-801.29,0.00013698,2]
[341847955,1731252643951,-524.76,0.00013698,2]
[341847957,1731252643960,-500.0,0.00013698,2]
[341847959,1731252643970,-500.0,0.00013698,2]
[341847961,1731252643979,-524.76,0.00013698,2]
[341847963,1731252643988,-801.29,0.00013698,2]
[341847965,1731252643997,-500.0,0.00013698,2]
[341847967,1731252644007,-500.0,0.00013698,2]
[341847969,1731252644016,-524.76,0.00013698,2]
[341847971,1731252644026,-801.29,0.00013698,2]
[341847973,1731252644036,-500.0,0.00013698,2]
[341847975,1731252644045,-500.0,0.00013698,2]
[341847977,1731252644054,-524.76,0.00013698,2]
[341847979,1731252644064,-801.29,0.00013698,2]
[341847981,1731252644074,-500.0,0.00013698,2]
[341847983,1731252644083,-500.0,0.00013698,2]
[341847985,1731252644093,-524.76,0.00013698,2]
[341847986,1731252644103,-801.29,0.00013698,2]
[341847987,1731252644112,-500.0,0.00013698,2]
[341847988,1731252644122,-524.76,0.00013698,2]
[341847989,1731252644131,-500.0,0.00013698,2]
[341847990,1731252644141,-801.29,0.00013698,2]
[341847991,1731252644153,-500.0,0.00013698,2]
[341847992,1731252644163,-524.76,0.00013698,2]
[341847993,1731252644172,-500.0,0.00013698,2]
[341847994,1731252644183,-801.29,0.00013698,2]
[341847995,1731252644193,-500.0,0.00013698,2]
[341847996,1731252644203,-500.0,0.00013698,2]
[341847998,1731252644213,-1007.01,0.00013698,2]
[341848000,1731252644223,-500.0,0.00013698,2]
[341848002,1731252644232,-801.29,0.00013698,2]
[341848004,1731252644242,-524.76,0.00013698,2]
[341848006,1731252644251,-500.0,0.00013698,2]
[341848008,1731252644261,-1007.01,0.00013698,2]
[341848010,1731252644270,-500.0,0.00013698,2]
[341848012,1731252644280,-801.29,0.00013698,2]
[341848015,1731252644290,-524.76,0.00013698,2]
[341848016,1731252644299,-500.0,0.00013698,2]
[341848018,1731252644308,-1007.01,0.00013698,2]
[341848037,1731252644482,-801.29,0.00013698,2]
[341848039,1731252644492,-644.85757209,0.00013698,2]
[341848041,1731252644502,-524.76,0.00013698,2]
[341848043,1731252644511,-1007.01,0.00013698,2]
[341848045,1731252644521,-500.0,0.00013698,2]
[341848047,1731252644531,-801.29,0.00013698,2]
[341848049,1731252644540,-1007.01,0.00013698,2]
[341848051,1731252644549,-524.76,0.00013698,2]
[341848053,1731252644562,-801.29,0.00013698,2]
[341848056,1731252644574,-1007.01,0.00013698,2]
[341848058,1731252644584,-524.76,0.00013698,2]
[341848060,1731252644594,-801.29,0.00013698,2]
[341848062,1731252644604,-1007.01,0.00013698,2]
[341848064,1731252644614,-644.72,0.00013698,2]
[341848066,1731252644624,-524.76,0.00013698,2]
[341848068,1731252644633,-801.29,0.00013698,2]
[341848070,1731252644643,-1007.01,0.00013698,2]
[341848072,1731252644656,-644.72,0.00013698,2]
[341848074,1731252644666,-801.29,0.00013698,2]
[341848076,1731252644676,-1007.01,0.00013698,2]
[341848078,1731252644686,-524.76,0.00013698,2]
[341848080,1731252644697,-644.72,0.00013698,2]
[341848082,1731252644707,-801.29,0.00013698,2]
[341848084,1731252644717,-1007.01,0.00013698,2]
[341848086,1731252644728,-524.76,0.00013698,2]
[341848088,1731252644738,-644.72,0.00013698,2]
[341848090,1731252644747,-801.29,0.00013698,2]
[341848092,1731252644757,-1007.01,0.00013698,2]
[341848094,1731252644767,-524.76,0.00013698,2]
[341848096,1731252644777,-644.72,0.00013698,2]
[341848098,1731252644787,-801.29,0.00013698,2]
[341848100,1731252644796,-1007.01,0.00013698,2]
[341848103,1731252644806,-524.93604665,0.00013698,2]
[341848104,1731252644815,-644.72,0.00013698,2]
[341848106,1731252644825,-801.29,0.00013698,2]
[341848108,1731252644834,-1007.01,0.00013698,2]
[341848110,1731252644843,-644.72,0.00013698,2]
[341848112,1731252644853,-801.29,0.00013698,2]
[341848114,1731252644862,-1007.01,0.00013698,2]
[341848116,1731252644871,-801.29,0.00013698,2]
[341848118,1731252644880,-644.72,0.00013698,2]
[341848120,1731252644890,-1007.01,0.00013698,2]
[341848122,1731252644900,-801.32460528,0.00013698,2]
[341848124,1731252644910,-644.72,0.00013698,2]
[341848126,1731252644919,-1007.01,0.00013698,2]
[341848129,1731252644929,-314.23676307,0.00013698,2]
[341848141,1731252645041,-330.48323693,0.00013698,2]
[341848143,1731252645050,-1007.01,0.00013698,2]
[341848145,1731252645060,-259.34404355,0.00013698,2]
[341848151,1731252645098,-385.37595645,0.00013698,2]
[341848153,1731252645107,-1007.01,0.00013698,2]
[341848155,1731252645116,-644.72,0.00013698,2]
[341848157,1731252645126,-1007.01,0.00013698,2]
[341848159,1731252645135,-644.72,0.00013698,2]
[341848161,1731252645144,-1007.01,0.00013698,2]
[341848163,1731252645156,-644.72,0.00013698,2]
[341848165,1731252645165,-500.0,0.00013698,2]
[341848167,1731252645175,-1007.01,0.00013698,2]
[341848169,1731252645184,-644.72,0.00013698,2]
[341848171,1731252645194,-500.0,0.00013698,2]
[341848173,1731252645204,-1007.01,0.00013698,2]
[341848175,1731252645214,-644.72,0.00013698,2]
[341848177,1731252645223,-500.0,0.00013698,2]
[341848179,1731252645233,-644.72,0.00013698,2]
[341848181,1731252645243,-1007.01,0.00013698,2]
[341848183,1731252645252,-500.0,0.00013698,2]
[341848185,1731252645261,-644.72,0.00013698,2]
[341848187,1731252645271,-1007.09,0.00013698,2]
[341848189,1731252645281,-500.0,0.00013698,2]
[341848191,1731252645290,-644.72,0.00013698,2]
[341848193,1731252645300,-644.72,0.00013698,2]
[341848195,1731252645310,-644.72,0.00013698,2]
[341848197,1731252645319,-644.72,0.00013698,2]
[341848199,1731252645329,-644.72,0.00013698,2]
[341848201,1731252645339,-644.86630899,0.00013698,2]
[341848203,1731252645349,-933.34,0.00013698,2]
[341848205,1731252645362,-933.34,0.00013698,2]
[341848207,1731252645372,-500.0,0.00013698,2]
[341848209,1731252645382,-246.64768714,0.00013698,2]
[341848211,1731252645392,-933.34,0.00013698,2]
[341848213,1731252645404,-933.34,0.00013698,2]
[341848215,1731252645414,-933.34,0.00013698,2]
[341848218,1731252645424,-933.34,0.00013698,2]
[341848220,1731252645436,-933.34,0.00013698,2]
[341848222,1731252645446,-933.34,0.00013698,2]
[341848223,1731252645456,-933.34,0.00013698,2]
[341848226,1731252645466,-933.34,0.00013698,2]
[341848227,1731252645476,-933.34,0.00013698,2]
[341848230,1731252645489,-933.34,0.00013698,2]
[341848232,1731252645498,-933.34,0.00013698,2]
[341848234,1731252645508,-726.23602824,0.00013698,2]
[341848451,1731252647946,-13627.0,0.00013393,2]
[341848453,1731252647955,-100967.77509396,0.00013698,2]
[341848456,1731252647973,-131905.59261124,0.00013698,2]
[341848458,1731252647984,-268.47411025,0.00013698,2]
[341848473,1731252648118,-159255.0,0.00013698,2]
[341848507,1731252648433,-735.66102162,0.00013698,2]
[341848510,1731252648445,-7645.82659826,0.00013698,2]
[341848524,1731252648580,-559.9859067,0.00013698,2]
[341848526,1731252648591,-538.83456101,0.00013698,2]
[341848529,1731252648605,-1967.29770801,0.00013698,2]
[341848553,1731252648940,-544.78627137,0.00013698,2]
[341848555,1731252648951,-1234.63522344,0.00013698,2]
[341848560,1731252648990,-502.94935939,0.00013698,2]
[341848563,1731252649001,-6422.67968644,0.00013698,2]
[341848565,1731252649012,-2610.0,0.00013698,2]
[341848694,1731252650249,-417.3485034,0.00013468,2]
[341848696,1731252650259,-4184.6355105,0.00013698,2]
[341848698,1731252650270,-395.19975272,0.00013698,2]
[341848700,1731252650281,-1767.11800022,0.00013698,2]
[341848702,1731252650292,-727.11949192,0.00013698,2]
[341848772,1731252650951,-624.14441,0.00013698,2]
[341848773,1731252651031,-85.56332554,0.00013698,2]
[341848775,1731252651056,-2133.47312413,0.00013698,2]
[341848777,1731252651067,-5146.14228264,0.00013698,2]
[341848780,1731252651078,-403.27730696,0.00013698,2]
[341848792,1731252651191,-20849.525746,0.00013698,2]
[341848794,1731252651202,-39875.44189745,0.00013698,2]
[341848796,1731252651213,-32075.63058,0.00013698,2]
[341848847,1731252651699,-300.0,0.00013393,2]
[341848861,1731252651826,-859.0,0.00013393,2]
[341848863,1731252651836,-879.478,0.00013698,2]
[341848865,1731252651847,-1266.63350002,0.00013698,2]
[341848867,1731252651858,-622.16745943,0.00013698,2]
[341848876,1731252651929,-3200.0,0.00013698,2]
[341848878,1731252651940,-74379.84081,0.00013698,2]
[341849541,1731252852682,-177.33,0.0001282,2]
[341849542,1731252852729,-23900.0,0.00012839,2]
[341849543,1731252852772,-177.33,0.00012852,2]
[341849544,1731252852817,-177.33,0.00012884,2]
[341849545,1731252852864,-177.33,0.00012916,2]
[341849546,1731252852910,-177.33,0.00012948,2]
[341849547,1731252852954,-150.0,0.00013279,2]
[341849548,1731252853337,-17978.3965,0.0001328,2]
[341849549,1731252853383,-627.48,0.0001328,2]
[341849550,1731252853428,-663.5766,0.0001328,2]
[341849551,1731252853474,-1000.0,0.0001328,2]
[341849552,1731252853519,-1000.0,0.00013353,2]
[341849553,1731252853564,-500.0,0.00013353,2]
[341849554,1731252853608,-2500.0,0.00013353,2]
[341849555,1731252853654,-180.55,0.00013407,2]
[341849556,1731252853698,-3739.29786305,0.00013559,2]
[341849557,1731252853742,-3739.29786305,0.00013561,2]
[341849558,1731252853787,-2435.92799342,0.00013561,2]
[341849559,1731252853835,-2435.92799342,0.00013561,2]
[341849560,1731252853881,-2435.92799342,0.0001357,2]
[341849561,1731252853927,-3739.29786305,0.00013573,2]
[341849562,1731252853975,-2435.92799342,0.00013574,2]
[341849563,1731252854019,-3739.29786305,0.00013576,2]
[341849564,1731252854063,-3739.29786305,0.0001358,2]
[341849565,1731252854108,-3739.29786305,0.00013583,2]
[341849566,1731252854155,-2435.92799342,0.00013588,2]
[341849567,1731252854421,-2435.92799342,0.0001359,2]
[341849568,1731252854467,-5000.0,0.00013598,2]
[341849569,1731252854511,-500.0,0.00013673,2]
[341849570,1731252854555,-501.16908815,0.00013673,2]
[341849571,1731252854599,-307.44008859,0.00013679,2]
[341849572,1731252854644,-250000.0,0.0001368,2]
[341849573,1731252854687,-653.2414374,0.00013688,2]
[341849574,1731252854732,-279.3557839,0.00013689,2]
[341849575,1731252854778,-500.0,0.00013697,2]
[341849576,1731252854825,-500.0,0.00013697,2]
[341849577,1731252854872,-167.06173149,0.00013697,2]
[341849578,1731252854919,-500.0,0.00013697,2]
[341849579,1731252854966,-500.0,0.00013697,2]
[341849580,1731252855014,-500.0,0.00013697,2]
[341849581,1731252855063,-500.0,0.00013697,2]
[341849582,1731252855109,-500.0,0.00013697,2]
[341849583,1731252855153,-150.01,0.00013697,2]
[341849584,1731252855201,-652503.71363165,0.00013698,2]
[341849607,1731252911647,45398.28,0.00013313,7]
[341849696,1731253023183,153.0,0.00027,60]
[341849843,1731253145122,150.0,0.00010125,2]
[341849844,1731253145145,100.93,0.00010125,2]
[341849845,1731253396823,150.0,0.00010635,2]
[341849846,1731253396850,150.0,0.00010635,2]
[341849847,1731253396875,150.0,0.00010635,2]
[341849848,1731253396899,150.0,0.00010635,2]
[341849849,1731253396921,150.0,0.00010635,2]
[341849850,1731253396944,150.0,0.00010635,2]
[341849851,1731253396967,150.0,0.00010635,2]
[341849852,1731253396993,150.0,0.00010635,2]
[341849853,1731253397017,150.0,0.00010635,2]
[341849854,1731253397039,150.0,0.00010635,2]
[341849855,1731253397064,655.71,0.00010635,2]
[341849856,1731253414046,155.648,0.0002619,60]
[341849857,1731253420159,966.71,0.00027,60]
[341849858,1731253431626,966.71,0.00027,60]
[341849859,1731253445297,966.71,0.00027,60]
[341849860,1731253629279,-300.0,0.00012449,2]
[341849861,1731253629303,-10609.12309327,0.0001245,2]
[341849862,1731253642521,-329.79818718,0.0001235,2]
[341849864,1731253746527,-150.0,0.00012298,2]
[341849865,1731253746556,-1469.74983722,0.00012305,2]
[341849866,1731253746584,-1469.74983722,0.00012321,2]
[341849867,1731253755948,1817.37,0.00012313,2]
[341849868,1731253761522,524.75,0.00012313,2]
[341849869,1731253802907,150.0,0.00012321,2]
[341849881,1731253833239,-174.71106131,0.0001235,2]
[341849882,1731253833249,-160.72,0.00012374,2]
[341849883,1731253833259,-160.72,0.00012405,2]
[341849884,1731253833269,-160.72,0.00012436,2]
[341849885,1731253833278,-300.0,0.00012449,2]
[341849886,1731253833288,-13290.87690673,0.0001245,2]
[341849887,1731253833297,-160.72,0.00012467,2]
[341849888,1731253833307,-164.51,0.00012477,2]
[341849889,1731253833316,-160.72,0.00012498,2]
[341849890,1731253833327,-160.2,0.00012515,2]
[341849891,1731253833339,-2303.78,0.00012515,2]
[341849892,1731253833349,-150.99,0.00012515,2]
[341849893,1731253833358,-500.0,0.00012549,2]
[341849894,1731253833368,-320.0,0.00012567,2]
[341849895,1731253833377,-150.0,0.00012603,2]
[341849896,1731253833387,-215.79,0.00012617,2]
[341849897,1731253833396,-250.0,0.00012626,2]
[341849898,1731253833406,-216.49,0.00012633,2]
[341849899,1731253833415,-250.0,0.00012646,2]
[341849900,1731253833425,-1000.0,0.00012657,2]
[341849901,1731253833434,-2155.71,0.00012899,2]
[341849902,1731253833444,-207.95,0.00012962,2]
[341849903,1731253833453,-1233.983,0.00013308,2]
[341849904,1731253833463,-170.73,0.00013308,2]
[341849905,1731253833473,-150.0,0.00013477,2]
[341849906,1731253833482,-4404.6443,0.00013478,2]
[341849907,1731253833492,-849.5612,0.00013478,2]
[341849908,1731253833501,-10119.1266,0.00013478,2]
[341849909,1731253833511,-9920.0764,0.00013478,2]
[341849910,1731253833520,-10597.2509,0.00013478,2]
[341849911,1731253833529,-263.4342,0.00013478,2]
[341849912,1731253833539,-1694.7752,0.00013478,2]
[341849913,1731253833549,-2500.0,0.00013478,2]
[341849914,1731253833558,-757.82139295,0.00013479,2]
[341849915,1731253833568,-757.82139295,0.0001348,2]
[341849916,1731253833577,-1944.55994,0.0001348,2]
[341849917,1731253833587,-181.17575502,0.0001348,2]
[341849918,1731253833597,-1431.7459,0.0001348,2]
[341849919,1731253833607,-204.22136322,0.0001348,2]
[341849920,1731253833616,-405.99237555,0.0001348,2]
[341849921,1731253833626,-1345.8109,0.0001348,2]
[341849922,1731253833635,-1476.0834,0.0001348,2]
[341849923,1731253833645,-9732.4084,0.0001348,2]
[341849924,1731253833655,-1922.46997821,0.0001348,2]
[341849925,1731253833665,-757.82139295,0.0001348,2]
[341849926,1731253833675,-405.99237555,0.0001351,2]
[341849927,1731253833684,-405.99237555,0.00013539,2]
[341849928,1731253833694,-1922.46997821,0.00013539,2]
[341849929,1731253833704,-2276.14116695,0.0001356,2]
[341849930,1731253833713,-78891.40165461,0.00013561,2]
[341849931,1731253833722,-200.0,0.00013561,2]
[341849932,1731253833732,-606.41811086,0.00013564,2]
[341849933,1731253833741,-4513.77673646,0.00013564,2]
[341849934,1731253833751,-97581.77360123,0.00013565,2]
[341849935,1731253833760,-606.41811086,0.00013566,2]
[341849936,1731253833770,-2276.14116695,0.00013566,2]
[341849937,1731253833780,-4515.3904592,0.00013566,2]
[341849938,1731253833791,-4486.99093079,0.00013566,2]
[341849939,1731253833801,-7466.20906921,0.00013567,2]
[341849940,1731253833813,-1666.00179632,0.00013567,2]
[341849968,1731253838424,-495.40631427,0.00013568,2]
[341849969,1731253838436,-543.44,0.00013568,2]
[341849970,1731253838570,-8058.0785746,0.00013568,2]
[341849971,1731253838581,-405.99237555,0.00013569,2]
[341849972,1731253838591,-47396.22178439,0.00013569,2]
[341849973,1731253838600,-265.98262502,0.00013569,2]
[341849974,1731253838610,-417.3485034,0.00013569,2]
[341849975,1731253838619,-265.98262502,0.0001357,2]
[341849976,1731253838628,-200.0,0.0001357,2]
[341849977,1731253838638,-265.98262502,0.0001357,2]
[341849978,1731253838648,-9002.38138999,0.0001357,2]
[341849979,1731253838657,-9002.38138999,0.0001357,2]
[341849980,1731253838666,-4513.77673646,0.00013571,2]
[341849981,1731253838675,-500.0,0.00013573,2]
[341849982,1731253838685,-160.05140719,0.00013573,2]
[341849983,1731253838694,-627.1938694,0.00013573,2]
[341849984,1731253838707,-500.0,0.00013573,2]
[341849985,1731253838716,-500.0,0.00013573,2]
[341849986,1731253838726,-501.38228833,0.00013573,2]
[341849987,1731253838735,-2276.14116695,0.00013573,2]
[341849988,1731253838745,-150.0,0.00013573,2]
[341849989,1731253838754,-4513.77673646,0.00013573,2]
[341849990,1731253838763,-500.0,0.00013574,2]
[341849991,1731253838773,-4513.77673646,0.00013575,2]
[341849992,1731253838782,-606.41811086,0.00013576,2]
[341849993,1731253838791,-500.0,0.00013576,2]
[341849994,1731253838800,-436.78128791,0.00013576,2]
[341849995,1731253838810,-189.54172773,0.00013577,2]
[341849996,1731253838819,-500.0,0.00013577,2]
[341849997,1731253838828,-500.0,0.00013577,2]
[341849998,1731253838844,-500.0,0.00013577,2]
[341849999,1731253838854,-218.77150594,0.00013577,2]
[341850000,1731253838864,-500.0,0.00013577,2]
[341850001,1731253838873,-500.0,0.00013577,2]
[341850003,1731253838884,-500.0,0.00013577,2]
[341850005,1731253838896,-500.0,0.00013577,2]
[341850008,1731253838909,-500.0,0.00013577,2]
[341850009,1731253838918,-500.0,0.00013577,2]
[341850011,1731253838928,-500.0,0.00013577,2]
[341850013,1731253838939,-500.0,0.00013577,2]
[341850016,1731253838948,-265.18778826,0.00013577,2]
[341850018,1731253838958,-500.0,0.00013577,2]
[341850019,1731253838967,-500.0,0.00013577,2]
[341850020,1731253838977,-500.0,0.00013577,2]
[341850021,1731253838986,-500.0,0.00013577,2]
[341850022,1731253838997,-361.17290805,0.00013577,2]
[341850023,1731253839006,-500.0,0.00013577,2]
[341850024,1731253839015,-500.0,0.00013577,2]
[341850025,1731253839025,-500.0,0.00013577,2]
[341850027,1731253839035,-500.0,0.00013577,2]
[341850029,1731253839044,-6706.16472009,0.00013578,2]
[341850031,1731253839056,-90050.68645906,0.00013578,2]
[341850038,1731253839155,-500.0,0.00013577,2]
[341850039,1731253839165,-500.0,0.00013577,2]
[341850040,1731253839175,-3129.8928224,0.00013578,2]
[341850041,1731253839187,-1052.78568252,0.00013578,2]
[341850042,1731253839198,-1359.09110256,0.00013578,2]
[341850043,1731253839314,-364905.02808797,0.00013578,2]
[341850044,1731253839324,-1701.93897159,0.00013579,2]
[341850045,1731253839336,-250000.0,0.00013579,2]
[341850046,1731253839346,-250000.0,0.00013579,2]
[341850047,1731253839355,-154181.73378703,0.00013579,2]
[341850048,1731253839365,-21073.54803019,0.0001358,2]
[341850049,1731253839375,-1101780.03718924,0.0001358,2]
[341850050,1731253839384,-2133609.59741853,0.0001358,2]
[341850051,1731253839394,-1000.0,0.0001358,2]
[341850052,1731253839404,-128779.4627,0.0001358,2]
[341850053,1731253839413,-47396.22178439,0.0001358,2]
[341850054,1731253839424,-500.0,0.00013582,2]
[341850055,1731253839433,-9002.38138999,0.00013584,2]
[341850056,1731253839443,-606.41811086,0.00013584,2]
[341850057,1731253839453,-47396.22178439,0.00013586,2]
[341850058,1731253839463,-4513.77673646,0.00013586,2]
[341850059,1731253839473,-2276.14116695,0.00013586,2]
[341850060,1731253839483,-47396.22178439,0.00013587,2]
[341850061,1731253839492,-2276.14116695,0.00013588,2]
[341850062,1731253839502,-606.41811086,0.00013588,2]
[341850063,1731253839512,-4129.0,0.00013589,2]
[341850064,1731253839522,-500.0,0.00013591,2]
[341850065,1731253839532,-4513.77673646,0.00013592,2]
[341850066,1731253839542,-606.41811086,0.00013594,2]
[341850067,1731253839552,-47396.22178439,0.00013595,2]
[341850068,1731253839562,-200.0,0.00013596,2]
[341850069,1731253839572,-2276.14116695,0.00013597,2]
[341850070,1731253839583,-5000.0,0.00013598,2]
[341850071,1731253839592,-245000.0,0.00013598,2]
[341850072,1731253839602,-37873.4214,0.00013598,2]
[341850073,1731253839611,-500.0,0.00013598,2]
[341850074,1731253839621,-100000.0,0.00013598,2]
[341850075,1731253839631,-12190.545,0.00013598,2]
[341850076,1731253839640,-10874.8489,0.00013598,2]
[341850077,1731253839650,-232.5284,0.00013598,2]
[341850078,1731253839660,-181.17575501,0.00013598,2]
[341850079,1731253839670,-405.99237555,0.00013598,2]
[341850080,1731253839679,-1922.46997821,0.00013598,2]
[341850081,1731253839689,-153.37889064,0.00013598,2]
[341850082,1731253839698,-200.0,0.00013598,2]
[341850083,1731253839708,-200.8136,0.00013598,2]
[341850084,1731253839718,-47396.22178439,0.00013599,2]
[341850085,1731253839727,-35000.0,0.000136,2]
[341850086,1731253839737,-500.0,0.000136,2]
[341850087,1731253839746,-893.02490256,0.000136,2]
[341850088,1731253839755,-5800.0,0.000136,2]
[341850089,1731253839765,-207.95,0.0001361,2]
[341850090,1731253839776,-420.0,0.0001366,2]
[341850091,1731253839786,-250000.0,0.0001368,2]
[341850092,1731253839795,-5430.8787025,0.00013688,2]
[341850093,1731253839804,-1085.7099471,0.00013688,2]
[341850094,1731253839814,-466.36726384,0.00013689,2]
[341850095,1731253839823,-151.0,0.00013698,2]
[341850096,1731253839834,-151.0,0.00013698,2]
[341850097,1731253839843,-163.100164,0.00013698,2]